[Event "IND-ch Women 2019"]
[Site "Karaikkudi"]
[Date "2019.07.25"]
[Round "9.6"]
[White "Pratyusha, Bodda"]
[Black "Thipsay, Bagyashree Sathe"]
[Result "1-0"]
[ECO "D31"]
[WhiteElo "2265"]
[BlackElo "2093"]
[Annotator "NA"]
[PlyCount "79"]
[EventDate "2019.07.19"]
[EventType "swiss"]
[EventCountry "IND"]
[SourceTitle "playchess.com"]
[Source "ChessBase"]
[SourceQuality "1"]
[TimeControl "40/5400+30:1800+30"]

1. d4 {[%emt 0:00:00]} d5 {[%emt 0:00:00]} 2. c4 {[%emt 0:00:00]} e6 {[%emt 0:00:00]} 3. Nc3 {[%emt 0:00:00]} Be7 {[%emt 0:00:00]} 4. cxd5 {[%emt 0:00:00]} exd5 {[%emt 0:00:00]} 5. Bf4 {[%emt 0:00:00]} c6 {[%emt 0:00:03]} 6. Qc2 {[%emt 0:00:02]} Bd6 {[%emt 0:00:56]} 7. Bxd6 {[%emt 0:00:21] D31: Queen's Gambit Declined: Semi-Slav without ...Nf6 (+ Marshall Gambit and Noteboom) and Exchange Variation lines without ...Nf6} Qxd6 {[%emt 0:00:06]} 8. e3 {[%emt 0:00:02]} Ne7 {[%emt 0:00:06]} 9. Bd3 {[%emt 0:00:03]} b6 {[%emt 0:00:59]} 10. Nf3 {[%emt 0:00:30]} Ba6 {[%emt 0:00:42]} 11. a3 {[%emt 0:01:40]} (11. O-O Bxd3 12. Qxd3 O-O 13. e4 Nd7 14. Rfe1 Rfe8 {0-1 (27) Nakamura,H (2780)-Topalov,V (2749) Saint Louis 2017}) 11... Bxd3 {[%emt 0:01:30]} 12. Qxd3 {[%emt 0:00:04]} Nd7 {[%emt 0:00:10]} 13. O-O {[%emt 0:00:20]} O-O {[%emt 0:00:25]} 14. b4 $146 {[%emt 0:00:55]} ({Predecessor:} 14. Ne2 a5 {1-0 (53) Trigo Urquijo,S (2389)-Maisuradze,N (2266) Leiria 2017}) 14... a5 {[%emt 0:10:54]} 15. b5 {[%emt 0:01:28]} c5 {[%emt 0:00:12]} 16. dxc5 {[%emt 0:00:06]} Nxc5 {[%emt 0:00:16]} 17. Qb1 {[%emt 0:04:26]} Ne6 {[%emt 0:06:14]} 18. Rd1 {[%emt 0:09:48]} Rac8 {[%emt 0:06:44]} 19. Qb2 {[%emt 0:10:28]} Rc4 {[%emt 0:03:03]} 20. Ne2 {[%emt 0:09:39]} Rfc8 {[%emt 0:10:42]} 21. Ned4 {[%emt 0:00:41]} Nc5 {[%emt 0:06:15]} 22. Nd2 {[%emt 0:03:56]} Rxd4 $2 {[%emt 0:08:57]} (22... Ra4 $11 {and Black is okay.}) 23. Qxd4 {[%emt 0:01:30]} Nf5 $2 {[%emt 0:04:25] [#]} (23... Qd7 24. Nf3 Qxb5) 24. Qg4 {[%emt 0:00:35]} (24. Nc4 $142 $1 {[%mdl 512]} Nxd4 (24... dxc4 25. Qxd6) 25. Nxd6 Ne2+ 26. Kf1) 24... Qf6 {[%emt 0:05:07]} 25. Nf3 {[%emt 0:03:47]} h6 $18 {[%emt 0:03:21]} 26. Nd4 {[%emt 0:04:28]} Nd6 {[%emt 0:00:13]} 27. Qf3 {[%emt 0:02:56]} Qg5 {[%emt 0:06:41]} 28. Nc6 {[%emt 0:01:30]} Re8 {[%emt 0:04:32]} 29. Rxd5 {[%emt 0:03:51]} Qg6 {[%emt 0:01:38]} 30. Ne5 {[%emt 0:00:36]} Qe6 {[%emt 0:02:15]} 31. Rxd6 {[%emt 0:01:08]} Qxe5 {[%emt 0:01:18]} 32. Rad1 {[%emt 0:00:19]} Re6 {[%emt 0:01:27]} 33. Rxe6 {[%emt 0:00:15]} Qxe6 {[%emt 0:00:17]} 34. Qd5 {[%emt 0:00:32]} Qg4 {[%emt 0:00:19]} 35. Qd4 {[%emt 0:00:28]} Qe2 {[%emt 0:00:23]} 36. a4 {[%emt 0:09:08]} Ne4 {[%emt 0:02:31]} 37. Rf1 {[%emt 0:02:10]} Qc2 {[%emt 0:01:38]} 38. Qxb6 {[%emt 0:02:14]} Nd2 {[%emt 0:00:51]} 39. Qc6 {[%emt 0:00:33]} Qxa4 {[%emt 0:02:14]} 40. Rc1 {[%emt 0:00:00]} 1-0

[Event "IND-ch Women 2019"]
[Site "Karaikkudi"]
[Date "2019.07.25"]
[Round "9.7"]
[White "Harshita Guddanti"]
[Black "Nandhidhaa, P V"]
[Result "0-1"]
[ECO "B43"]
[WhiteElo "2078"]
[BlackElo "2259"]
[Annotator "NA"]
[PlyCount "158"]
[EventDate "2019.07.19"]
[EventType "swiss"]
[EventCountry "IND"]
[SourceTitle "playchess.com"]
[Source "ChessBase"]
[SourceQuality "1"]
[TimeControl "40/5400+30:1800+30"]

1. e4 {[%emt 0:00:06]} c5 {[%emt 0:00:00]} 2. Nf3 {[%emt 0:00:05]} e6 {[%emt 0:00:00]} 3. d4 {[%emt 0:00:06]} cxd4 {[%emt 0:00:00]} 4. Nxd4 {[%emt 0:00:05]} a6 {[%emt 0:00:00]} 5. Nc3 {[%emt 0:00:40]} Qc7 {[%emt 0:00:00]} 6. f4 {[%emt 0:08:42]} b5 {[%emt 0:04:07]} 7. Bd3 {[%emt 0:02:07]} Bb7 {[%emt 0:00:54] B43: Sicilian: Kan Variation: 5 Nc3} 8. Nb3 {[%emt 0:07:41]} (8. Qe2 Nf6 9. e5 b4 10. Ne4 Nxe4 11. Bxe4 Bc5 12. Nb3 Bb6 13. Bxb7 Qxb7 14. Be3 O-O 15. Bxb6 Qxb6 16. O-O-O {1-0 (64) Nevednichy,V (2557)-Kovalenko,I (2656) Cappelle-la-Grande 2015}) 8... b4 $146 {[%emt 0:03:05]} ({Predecessor:} 8... Nf6 9. e5 Nd5 10. Ne4 d6 11. Nxd6+ Bxd6 12. exd6 Qxd6 13. O-O Nd7 14. Qe2 O-O 15. Bd2 {1-0 (53) Calcado,A (2156)-Poeta,C (1872) Osasco 2012}) 9. Ne2 {[%emt 0:04:33]} Nf6 {[%emt 0:01:46]} 10. Ng3 {[%emt 0:02:24]} h5 {[%emt 0:02:34]} 11. Qf3 {[%emt 0:04:29]} h4 {[%emt 0:02:48]} 12. Ne2 {[%emt 0:01:48]} h3 {[%emt 0:01:23]} 13. g4 {[%emt 0:24:28] [#]} d5 $1 {[%emt 0:02:39]} 14. Ng3 {[%emt 0:03:17]} Nbd7 {[%emt 0:00:48]} 15. g5 {[%emt 0:07:40]} dxe4 {[%emt 0:02:27]} 16. Nxe4 {[%emt 0:00:27]} Nxe4 {[%emt 0:00:27]} 17. Bxe4 {[%emt 0:00:49]} Bxe4 {[%emt 0:00:06]} 18. Qxe4 {[%emt 0:00:04]} Rc8 {[%emt 0:00:09]} 19. Bd2 {[%emt 0:06:49]} Qxc2 {[%emt 0:08:19]} 20. Qxc2 {[%emt 0:04:42]} Rxc2 {[%emt 0:00:17]} 21. Ke2 {[%emt 0:01:54]} Nb6 $15 {[%emt 0:05:40]} 22. Rhc1 {[%emt 0:02:32]} Rxc1 {[%emt 0:00:08]} 23. Rxc1 {[%emt 0:00:29]} Kd7 {[%emt 0:00:17]} 24. Nc5+ {[%emt 0:08:04]} Bxc5 {[%emt 0:01:12]} 25. Rxc5 {[%emt 0:00:05]} Nd5 {[%emt 0:00:32]} 26. Kf3 {[%emt 0:03:25]} Kd6 {[%emt 0:06:09]} 27. Ra5 {[%emt 0:01:14]} Ra8 {[%emt 0:00:06]} 28. a3 {[%emt 0:01:11]} b3 {[%emt 0:04:56]} 29. Bb4+ {[%emt 0:01:59]} Kc6 {[%emt 0:02:10]} 30. f5 {[%emt 0:00:51]} g6 {[%emt 0:03:12]} 31. fxg6 {[%emt 0:00:45]} fxg6 {[%emt 0:00:06]} 32. Rc5+ {[%emt 0:01:14]} Kb6 {[%emt 0:00:10]} 33. Rc4 {[%emt 0:00:33]} a5 {[%emt 0:01:05]} 34. Bd2 {[%emt 0:00:24]} Kb5 {[%emt 0:17:24]} 35. Re4 {[%emt 0:00:28]} Ra6 {[%emt 0:00:12]} 36. a4+ {[%emt 0:00:50]} Kc5 {[%emt 0:00:06]} 37. Kg3 {[%emt 0:00:23]} Kd6 {[%emt 0:00:25]} 38. Rc4 {[%emt 0:00:48]} Nb6 {[%emt 0:11:36]} 39. Rh4 {[%emt 0:00:43]} Kd5 {[%emt 0:01:40]} 40. Bc3 {[%emt 0:00:00]} e5 {[%emt 0:00:00]} 41. Kf3 {[%emt 0:08:04]} Ra8 {[%emt 0:05:03]} 42. Ke2 {[%emt 0:04:26]} Rc8 {[%emt 0:06:11]} 43. Rxh3 {[%emt 0:06:14]} Nxa4 {[%emt 0:01:52]} 44. Rd3+ {[%emt 0:04:21]} Ke6 {[%emt 0:02:00]} 45. Bd2 {[%emt 0:04:16]} Nc5 {[%emt 0:12:04]} 46. Rf3 {[%emt 0:01:38]} a4 {[%emt 0:00:13]} 47. Rf6+ {[%emt 0:00:59]} Kd5 {[%emt 0:00:08]} 48. Bb4 {[%emt 0:02:01]} Rc6 {[%emt 0:05:15]} 49. h4 {[%emt 0:02:08]} Ne6 {[%emt 0:02:43]} 50. Ke3 {[%emt 0:00:28]} Rc4 {[%emt 0:01:30]} 51. Ba3 {[%emt 0:00:40]} Rxh4 {[%emt 0:00:36]} 52. Rxg6 {[%emt 0:00:26]} Rg4 {[%emt 0:00:05]} 53. Rg8 {[%emt 0:00:57]} Nxg5 {[%emt 0:09:49]} 54. Rd8+ {[%emt 0:00:04]} Ke6 {[%emt 0:00:06]} 55. Re8+ {[%emt 0:00:04]} Kf6 {[%emt 0:00:38]} 56. Rf8+ {[%emt 0:00:15]} Nf7 {[%emt 0:00:03]} 57. Ra8 {[%emt 0:00:14]} Rc4 {[%emt 0:00:46]} 58. Kd3 {[%emt 0:01:11]} Rd4+ {[%emt 0:00:14]} 59. Ke2 {[%emt 0:01:14]} Nd8 {[%emt 0:01:55]} 60. Bc5 {[%emt 0:00:32]} Rc4 {[%emt 0:00:22]} 61. Be3 {[%emt 0:00:45]} Ne6 {[%emt 0:00:20]} 62. Kd3 {[%emt 0:00:15]} Rg4 {[%emt 0:00:39]} 63. Bd2 {[%emt 0:00:23]} Nc5+ {[%emt 0:01:30]} 64. Ke2 {[%emt 0:00:13]} Rc4 {[%emt 0:02:13]} 65. Kd1 {[%emt 0:00:46]} Ne4 {[%emt 0:01:11]} 66. Be3 {[%emt 0:00:21]} Kf5 {[%emt 0:01:12]} 67. Ra5 {[%emt 0:00:32]} Nf6 {[%emt 0:01:36]} 68. Bd2 {[%emt 0:00:39]} Ke4 {[%emt 0:00:27]} 69. Ra8 {[%emt 0:00:41]} Nd5 {[%emt 0:00:32]} 70. Ra5 {[%emt 0:00:24]} Rd4 {[%emt 0:01:47]} 71. Ke1 {[%emt 0:00:41]} Kd3 {[%emt 0:00:30]} 72. Kd1 {[%emt 0:00:17]} e4 {[%emt 0:01:08]} 73. Rc5 {[%emt 0:00:24]} e3 {[%emt 0:00:57]} 74. Bc1 {[%emt 0:00:02]} Ke4+ {[%emt 0:00:31]} 75. Ke1 {[%emt 0:00:04]} Nf4 {[%emt 0:00:30]} 76. Rc3 {[%emt 0:00:28]} Nd3+ {[%emt 0:00:30]} 77. Kf1 {[%emt 0:00:07]} Nxc1 {[%emt 0:00:06]} 78. Rxc1 {[%emt 0:00:03]} Kf3 {[%emt 0:00:14]} 79. Ke1 {[%emt 0:00:47]} Rh4 {[%emt 0:00:08]} 0-1

[Event "IND-ch Women 2019"]
[Site "Karaikkudi"]
[Date "2019.07.25"]
[Round "9.8"]
[White "Michelle Catherina, P."]
[Black "Chitlange Sakshi"]
[Result "1-0"]
[ECO "B13"]
[WhiteElo "2226"]
[BlackElo "2168"]
[Annotator "NA"]
[PlyCount "159"]
[EventDate "2019.07.19"]
[EventType "swiss"]
[EventCountry "IND"]
[SourceTitle "playchess.com"]
[Source "ChessBase"]
[SourceQuality "1"]
[TimeControl "40/5400+30:1800+30"]

1. e4 {[%emt 0:01:46]} c6 {[%emt 0:00:00]} 2. d4 {[%emt 0:00:10]} d5 {[%emt 0:00:00]} 3. exd5 {[%emt 0:00:10]} cxd5 {[%emt 0:00:00]} 4. c4 {[%emt 0:00:04]} Nf6 {[%emt 0:00:38]} 5. Nc3 {[%emt 0:00:08]} Nc6 {[%emt 0:00:37]} 6. Bg5 {[%emt 0:02:34]} dxc4 {[%emt 0:01:03]} 7. Bxc4 {[%emt 0:07:40]} h6 {[%emt 0:02:37]} 8. Be3 {[%emt 0:07:51]} e6 {[%emt 0:01:57]} 9. Nf3 {[%emt 0:02:10]} Be7 {[%emt 0:02:06]} 10. O-O {[%emt 0:01:30]} O-O {[%emt 0:00:05]} 11. a3 {[%emt 0:04:22]} b6 {[%emt 0:04:45]} 12. Re1 {[%emt 0:05:01]} Bb7 {[%emt 0:00:55]} 13. Ba2 {[%emt 0:01:18]} Rc8 {[%emt 0:01:44]} 14. Qd3 {[%emt 0:04:59]} Re8 {[%emt 0:03:54]} 15. Rad1 {[%emt 0:02:17]} Bf8 {[%emt 0:05:54]} 16. Bc1 {[%emt 0:03:11]} Ne7 {[%emt 0:03:53]} 17. Ne5 {[%emt 0:25:52]} Ned5 {[%emt 0:01:18]} 18. Ne4 $11 {[%emt 0:03:51]} Nxe4 {[%emt 0:06:57]} 19. Qxe4 {[%emt 0:04:41]} Rc7 {[%emt 0:02:21]} 20. Bb1 {[%emt 0:04:44]} Nf6 {[%emt 0:00:19]} 21. Qh4 {[%emt 0:00:57]} Qd5 {[%emt 0:16:32]} 22. Qh3 {[%emt 0:01:14]} b5 {[%emt 0:06:12]} 23. Bf4 {[%emt 0:05:13]} Rce7 {[%emt 0:05:07]} 24. Rd3 {[%emt 0:03:51]} Nh5 {[%emt 0:09:16]} 25. Bd2 {[%emt 0:03:30]} Rc7 {[%emt 0:03:54]} 26. Rf3 {[%emt 0:01:35]} Nf6 {[%emt 0:00:06]} 27. Bxh6 {[%emt 0:01:45]} gxh6 {[%emt 0:00:22]} 28. Rxf6 {[%emt 0:00:36]} Bg7 {[%emt 0:07:15]} 29. Ng4 {[%emt 0:00:52]} Qxd4 {[%emt 0:00:45]} 30. Qg3 {[%emt 0:00:34]} Qd2 {[%emt 0:02:04]} 31. Rf1 {[%emt 0:00:27]} Rec8 {[%emt 0:03:22]} 32. Nxh6+ {[%emt 0:00:29]} Kf8 {[%emt 0:00:00]} 33. Rxf7+ {[%emt 0:00:24]} Rxf7 {[%emt 0:00:07]} 34. Nxf7 {[%emt 0:00:04]} Kxf7 {[%emt 0:01:47]} 35. Qg6+ {[%emt 0:00:14]} Kf8 {[%emt 0:00:10]} 36. Qxe6 {[%emt 0:00:15]} Qd5 {[%emt 0:03:01]} 37. Qh3 {[%emt 0:01:33]} Bxb2 {[%emt 0:02:10]} 38. Re1 {[%emt 0:00:32]} Rc7 {[%emt 0:01:21]} 39. Qh6+ {[%emt 0:00:29]} Rg7 {[%emt 0:01:38]} 40. Be4 {[%emt 0:00:00]} Qe5 {[%emt 0:00:00]} 41. Qh8+ {[%emt 0:16:23]} Kf7 {[%emt 0:05:26]} 42. Bg6+ {[%emt 0:03:21]} Kxg6 {[%emt 0:00:06]} 43. Rxe5 {[%emt 0:02:04]} Bxe5 {[%emt 0:00:01]} 44. g4 {[%emt 0:03:01]} Kf7 {[%emt 0:03:55]} 45. Qh5+ {[%emt 0:01:38]} Ke6 {[%emt 0:00:01]} 46. f4 {[%emt 0:01:11]} Bd4+ {[%emt 0:02:00]} 47. Kf1 {[%emt 0:00:02]} a6 {[%emt 0:09:48]} 48. Qe8+ {[%emt 0:04:00]} Kd6 {[%emt 0:01:40]} 49. g5 {[%emt 0:01:35]} Bf3 {[%emt 0:03:21]} 50. f5 {[%emt 0:01:06]} Kc5 {[%emt 0:03:02]} 51. Qc8+ {[%emt 0:00:44]} Kb6 {[%emt 0:00:40]} 52. Qd8+ {[%emt 0:00:36]} Kc5 {[%emt 0:00:05]} 53. Qc8+ {[%emt 0:00:09]} Kb6 {[%emt 0:00:04]} 54. Qb8+ {[%emt 0:01:11]} Kc5 {[%emt 0:00:36]} 55. Qf4 {[%emt 0:00:16]} Bd5 {[%emt 0:00:51]} 56. f6 {[%emt 0:00:32]} Bc4+ {[%emt 0:03:07]} 57. Kg2 {[%emt 0:00:06]} Bd5+ {[%emt 0:00:14]} 58. Kf1 {[%emt 0:00:09]} Bc4+ {[%emt 0:00:03]} 59. Kg2 {[%emt 0:00:07]} Bd5+ {[%emt 0:00:04]} 60. Kg3 {[%emt 0:00:19]} Rf7 {[%emt 0:00:43]} 61. h4 {[%emt 0:01:14]} a5 {[%emt 0:01:05]} 62. Qb8 {[%emt 0:01:28]} b4 {[%emt 0:00:39]} 63. Qc8+ {[%emt 0:00:37]} Kb5 {[%emt 0:02:17]} 64. Qf5 {[%emt 0:00:30]} Kc5 {[%emt 0:01:36]} 65. Qc8+ {[%emt 0:00:26]} Kb5 {[%emt 0:00:01]} 66. Qf5 {[%emt 0:00:06]} Kc5 {[%emt 0:00:01]} 67. Qc2+ {[%emt 0:00:57]} Kd6 {[%emt 0:00:19]} 68. Qa4 {[%emt 0:00:38]} Be5+ {[%emt 0:02:24]} 69. Kg4 {[%emt 0:00:14]} Be6+ {[%emt 0:01:15]} 70. Kh5 {[%emt 0:00:43]} Rh7+ {[%emt 0:01:31]} 71. Kg6 {[%emt 0:00:04]} Rxh4 {[%emt 0:00:04]} 72. Qxa5 {[%emt 0:00:35]} b3 {[%emt 0:00:09]} 73. Qb6+ {[%emt 0:00:35]} Kd7 {[%emt 0:00:08]} 74. Qb5+ {[%emt 0:00:36]} Kd6 {[%emt 0:00:01]} 75. Qb8+ {[%emt 0:00:12]} Kd5 {[%emt 0:00:44]} 76. Qxb3+ {[%emt 0:00:05]} Kd6 {[%emt 0:00:03]} 77. Qb6+ {[%emt 0:00:37]} Kd5 {[%emt 0:00:48]} 78. f7 {[%emt 0:01:09]} Rf4 {[%emt 0:01:30]} 79. Qb5+ {[%emt 0:00:35]} Ke4 {[%emt 0:01:17]} 80. f8=Q {[%emt 0:00:33]} 1-0

[Event "IND-ch Women 2019"]
[Site "Karaikkudi"]
[Date "2019.07.25"]
[Round "9.9"]
[White "Vijayalakshmi, Subbaraman"]
[Black "Nandhini, Saripalli"]
[Result "1-0"]
[ECO "E05"]
[WhiteElo "2357"]
[BlackElo "1933"]
[Annotator "NA"]
[PlyCount "51"]
[EventDate "2019.07.19"]
[EventType "swiss"]
[EventCountry "IND"]
[SourceTitle "playchess.com"]
[Source "ChessBase"]
[SourceQuality "1"]
[TimeControl "40/5400+30:1800+30"]

1. Nf3 {[%emt 0:03:13]} Nf6 {[%emt 0:00:00]} 2. g3 {[%emt 0:00:08]} e6 {[%emt 0:00:53]} 3. Bg2 {[%emt 0:00:09]} d5 {[%emt 0:00:06]} 4. d4 {[%emt 0:00:16]} c5 {[%emt 0:07:34]} 5. O-O {[%emt 0:01:11]} Be7 {[%emt 0:04:14]} 6. dxc5 {[%emt 0:06:07]} O-O {[%emt 0:04:42]} 7. c4 {[%emt 0:08:29]} dxc4 {[%emt 0:12:11]} 8. Qc2 {[%emt 0:05:32]} Bxc5 {[%emt 0:02:50]} 9. Qxc4 {[%emt 0:02:27]} Qe7 {[%emt 0:05:43]} 10. Nc3 {[%emt 0:02:55]} Nbd7 {[%emt 0:18:23]} 11. Rd1 {[%emt 0:03:27]} a6 {[%emt 0:02:27]} 12. Bg5 {[%emt 0:08:33]} b5 {[%emt 0:02:57]} 13. Qh4 {[%emt 0:02:35]} h6 {[%emt 0:05:53] [#]} 14. Ne4 $1 {[%emt 0:04:44]} hxg5 {[%emt 0:13:27]} 15. Nfxg5 {[%emt 0:01:53]} Rd8 {[%emt 0:02:03]} 16. Nxf6+ {[%emt 0:06:30]} Nxf6 $18 {[%emt 0:04:50]} (16... Qxf6 $142 17. Bxa8 Bxf2+ 18. Kh1 Be3) 17. Bxa8 {[%emt 0:00:29]} Bb6 {[%emt 0:01:39]} 18. Bf3 {[%emt 0:01:18]} Bb7 {[%emt 0:00:28]} 19. Rxd8+ {[%emt 0:02:44]} Bxd8 {[%emt 0:00:08]} 20. Rd1 {[%emt 0:00:49]} Bb6 {[%emt 0:00:36]} 21. Bxb7 {[%emt 0:02:40]} Qxb7 {[%emt 0:00:05]} 22. Qf4 {[%emt 0:00:48]} Bc7 {[%emt 0:02:29]} 23. Rd7 {[%emt 0:02:07]} e5 {[%emt 0:03:48]} 24. Qxe5 {[%emt 0:01:35]} Bxe5 {[%emt 0:00:03]} 25. Rd8+ {[%emt 0:00:14]} Ne8 {[%emt 0:00:01]} 26. Rxe8# {[%emt 0:00:07]} 1-0

[Event "IND-ch Women 2019"]
[Site "Karaikkudi"]
[Date "2019.07.25"]
[Round "9.10"]
[White "Meenal Gupta"]
[Black "Srija, Seshadri"]
[Result "0-1"]
[ECO "C60"]
[WhiteElo "2004"]
[BlackElo "2306"]
[Annotator "NA"]
[PlyCount "78"]
[EventDate "2019.07.19"]
[EventType "swiss"]
[EventCountry "IND"]
[SourceTitle "playchess.com"]
[Source "ChessBase"]
[SourceQuality "1"]
[TimeControl "40/5400+30:1800+30"]

1. e4 {[%emt 0:00:00]} e5 {[%emt 0:00:00]} 2. Nf3 {[%emt 0:00:00]} Nc6 {[%emt 0:00:00]} 3. Bb5 {[%emt 0:00:00]} g6 {[%emt 0:00:15]} 4. c3 {[%emt 0:00:04]} Bg7 {[%emt 0:00:28]} 5. O-O {[%emt 0:00:12]} a6 {[%emt 0:00:25]} 6. Ba4 {[%emt 0:00:06]} Nge7 {[%emt 0:00:25]} 7. d4 {[%emt 0:00:11]} exd4 {[%emt 0:00:13]} 8. cxd4 {[%emt 0:00:07]} b5 {[%emt 0:00:13] C60: Ruy Lopez: Unusual Black 3rd moves and 3...g6} 9. Bb3 {[%emt 0:00:08]} d6 {[%emt 0:00:20]} (9... O-O 10. Nc3 d6 11. h3 Na5 12. Bc2 c5 13. dxc5 dxc5 14. Qxd8 Rxd8 {0-1 (65) Vachier Lagrave,M (2789)-Mamedyarov,S (2808) Leuven 2018}) 10. a4 {[%emt 0:03:50]} b4 {[%emt 0:02:45]} 11. Be3 {[%emt 0:07:35]} O-O {[%emt 0:02:36]} 12. Qc2 $146 {[%emt 0:00:56]} ({Predecessor:} 12. Nbd2 Na5 13. Bc2 Bb7 14. Qe2 Rb8 15. Bd3 Qc8 16. Rac1 {1-0 (48) Sam,G (2069)-Tomasi,A (2200) Khanty-Mansiysk 2016}) 12... Na5 {[%emt 0:01:17]} 13. Nbd2 {[%emt 0:02:38]} Nxb3 {[%emt 0:04:45]} 14. Qxb3 {[%emt 0:04:26]} a5 {[%emt 0:00:19]} 15. Rac1 {[%emt 0:08:59]} c6 {[%emt 0:02:08]} 16. Bg5 {[%emt 0:03:00]} Bd7 {[%emt 0:08:55]} 17. d5 {[%emt 0:17:32]} (17. Qd3 $14) 17... cxd5 {[%emt 0:00:39]} 18. exd5 {[%emt 0:00:10]} h6 {[%emt 0:11:52]} 19. Bxe7 {[%emt 0:06:15]} Qxe7 {[%emt 0:00:13]} 20. Nc4 {[%emt 0:00:03]} Ra6 {[%emt 0:15:29]} 21. Rfd1 $15 {[%emt 0:04:34]} (21. Rfe1 $5 {[%cal Re1e7]} Qf6 22. Qc2 $11) 21... Rc8 {[%emt 0:08:33]} 22. Nd4 {[%emt 0:08:56]} Rc5 {[%emt 0:03:30]} 23. Nb5 {[%emt 0:17:52]} Bxb5 {[%emt 0:01:07]} 24. axb5 {[%emt 0:00:04]} Rxb5 {[%emt 0:00:26]} 25. Qa4 {[%emt 0:00:37]} Rc5 {[%emt 0:00:36]} 26. b3 {[%emt 0:01:03]} Bc3 {[%emt 0:03:21]} 27. Rd3 {[%emt 0:14:12]} Ra8 {[%emt 0:07:36]} 28. Nb6 {[%emt 0:00:00]} Rd8 {[%emt 0:01:36]} 29. h4 {[%emt 0:00:00]} Bd4 {[%emt 0:07:47]} 30. Rcd1 {[%emt 0:00:00]} Bxf2+ {[%emt 0:04:01]} 31. Kxf2 {[%emt 0:00:00]} Qa7 {[%emt 0:01:22]} 32. Re1 {[%emt 0:00:00]} Qxb6 {[%emt 0:00:23]} 33. Re8+ {[%emt 0:00:00]} Kg7 {[%emt 0:00:23]} 34. Kg3 {[%emt 0:00:00]} Rc3 {[%emt 0:02:34]} 35. Ree3 {[%emt 0:00:00]} Rxd3 {[%emt 0:03:47]} 36. Rxd3 {[%emt 0:00:00]} Qg1 {[%emt 0:01:45]} 37. Qxa5 {[%emt 0:00:00]} Qe1+ {[%emt 0:00:06]} 38. Kh3 {[%emt 0:00:00]} Re8 {[%emt 0:00:23]} 39. Qb6 {[%emt 0:00:00]} Re4 {[%emt 0:00:24]} 0-1

[Event "IND-ch Women 2019"]
[Site "Karaikkudi"]
[Date "2019.07.25"]
[Round "9.11"]
[White "Saranya, J."]
[Black "Mohota, Nisha"]
[Result "0-1"]
[ECO "B03"]
[WhiteElo "2067"]
[BlackElo "2221"]
[Annotator "NA"]
[PlyCount "58"]
[EventDate "2019.07.19"]
[EventType "swiss"]
[EventCountry "IND"]
[SourceTitle "playchess.com"]
[Source "ChessBase"]
[SourceQuality "1"]
[TimeControl "40/5400+30:1800+30"]

1. e4 {[%emt 0:00:00]} Nf6 {[%emt 0:00:00]} 2. e5 {[%emt 0:00:00]} Nd5 {[%emt 0:00:00]} 3. d4 {[%emt 0:00:00]} d6 {[%emt 0:00:00]} 4. c4 {[%emt 0:00:10]} Nb6 {[%emt 0:00:00]} 5. exd6 {[%emt 0:00:08]} cxd6 {[%emt 0:00:00]} 6. Nc3 {[%emt 0:00:19]} g6 {[%emt 0:00:00]} 7. Be3 {[%emt 0:00:14]} Bg7 {[%emt 0:00:00]} 8. Rc1 {[%emt 0:00:21]} O-O {[%emt 0:00:00]} 9. b3 {[%emt 0:00:14]} Bf5 {[%emt 0:00:02]} 10. Be2 {[%emt 0:01:41]} d5 {[%emt 0:00:22]} 11. c5 {[%emt 0:00:30]} Nc8 {[%emt 0:00:08]} 12. Bf3 {[%emt 0:00:54]} e5 {[%emt 0:00:06]} 13. dxe5 {[%emt 0:01:50]} Nc6 {[%emt 0:00:01]} 14. Qxd5 {[%emt 0:16:10]} (14. g4 $11 {was the only way to keep the balance.} Be6 15. Bxd5) 14... Qa5 {[%emt 0:00:03]} 15. Qd2 {[%emt 0:25:21]} Rd8 {[%emt 0:15:58]} 16. Qb2 $19 {[%emt 0:06:48]} (16. Nd5 $17 {might work better.} Qxd2+ 17. Bxd2 Nxe5 18. Nc7 Nd3+ 19. Kf1) 16... N8e7 {[%emt 0:28:05]} 17. Be2 {[%emt 0:08:10]} Nxe5 {[%emt 0:03:05]} 18. Nf3 {[%emt 0:03:31]} Nd3+ {[%emt 0:04:44]} 19. Bxd3 {[%emt 0:01:21]} Bxd3 {[%emt 0:00:02]} 20. b4 {[%emt 0:03:54]} Qa6 {[%emt 0:02:56]} 21. Qb3 {[%emt 0:01:00]} Bc4 {[%emt 0:08:34]} 22. Qc2 {[%emt 0:02:12]} Nf5 {[%emt 0:01:14]} 23. a4 {[%emt 0:06:12]} Qe6 {[%emt 0:02:35]} 24. Ne2 {[%emt 0:03:41]} Nxe3 {[%emt 0:04:33]} 25. fxe3 {[%emt 0:00:06]} Bb3 {[%emt 0:00:23]} 26. Qb1 {[%emt 0:02:05]} Qxe3 {[%emt 0:00:10]} 27. Kf1 {[%emt 0:03:17]} Bd5 {[%emt 0:04:48]} 28. Ne1 {[%emt 0:06:47]} Be4 {[%emt 0:03:32]} 29. Nc2 {[%emt 0:03:04]} Bxg2+ {[%emt 0:00:37]} 0-1